fUST/lending_fUST_20250803
["ID","MTS","AMOUNT","RATE_DAILY","PERIOD"]
[377063549,1754229039167,-233.75,0.00030137,30]
[377063550,1754229039176,-2500.0,0.00030164,5]
[377063551,1754229039186,-1228.12,0.00030698,4]
[377063552,1754229039195,-233.75,0.0003071,30]
[377063553,1754229039205,-3000.0,0.00030712,5]
[377063554,1754229039214,-200.0,0.00030803,15]
[377063555,1754229039224,-200.0,0.00030803,15]
[377063556,1754229039235,-300.0,0.00030803,15]
[377063557,1754229039245,-3500.0,0.0003126,5]
[377063558,1754229039255,-233.75,0.00031285,30]
[377063559,1754229039264,-587.0,0.00031291,2]
[377063560,1754229039277,-154.0,0.000317,120]
[377063561,1754229039286,-967.19032018,0.00031808,5]
[377063562,1754229039414,-233.75,0.00031859,30]
[377063563,1754229039449,-192.81,0.00031952,2]
[377063564,1754229039459,-1228.12,0.00032068,6]
[377063565,1754229039469,-200.0,0.00032345,120]
[377063566,1754229039479,-233.75,0.00032434,30]
[377063567,1754229039489,-200.0,0.00032443,120]
[377063568,1754229039498,-161.494439,0.00032666,2]
[377063569,1754229039508,-200.0,0.00032713,120]
[377063570,1754229039519,-381.12,0.000328,7]
[377063571,1754229039528,-233.75,0.00033008,30]
[377063572,1754229039538,-444.03092742,0.00033036,2]
[377063573,1754229039547,-2200.0,0.00033201,2]
[377063574,1754229039556,-460.0,0.00033328,10]
[377063576,1754229039566,-970.0,0.00033329,2]
[377063578,1754229039575,-150.0,0.00033329,2]
[377063579,1754229039585,-1228.12,0.00033438,120]
[377063580,1754229039594,-233.75,0.00033583,30]
[377063581,1754229039603,-154.0,0.000336,120]
[377063582,1754229039612,-200.0,0.00033769,15]
[377063584,1754229039622,-200.0,0.00033769,15]
[377063586,1754229039632,-200.0,0.00033769,15]
[377063588,1754229039641,-379.0,0.00033769,15]
[377063590,1754229039650,-823.0,0.00033838,2]
[377063592,1754229039659,-233.75,0.00034158,30]
[377063594,1754229039670,-233.75,0.00034755,30]
[377063596,1754229039680,-1228.12,0.00034808,120]
[377063598,1754229039690,-552.55879833,0.00035294,2]
[377063600,1754229039699,-201.0,0.0003531,41]
[377063602,1754229039710,-154.0,0.000355,120]
[377063604,1754229039719,-150.0,0.00035633,3]
[377063606,1754229039729,-1500.0,0.00036,2]
[377063608,1754229039738,-1500.0,0.00036,2]
[377063610,1754229039748,-1500.0,0.00036,2]
[377063612,1754229039757,-1500.0,0.00036,2]
[377063614,1754229039768,-167.0,0.00036,30]
[377063617,1754229039781,-500.0,0.00036164,7]
[377063619,1754229039790,-1228.12,0.00036178,120]
[377063621,1754229039799,-1152.0,0.00036591,2]
[377063623,1754229039809,-200.0,0.00036997,120]
[377063625,1754229039819,-200.0,0.00037021,15]
[377063627,1754229039828,-200.0,0.00037021,15]
[377063629,1754229039838,-200.0,0.00037021,15]
[377063632,1754229039848,-200.0,0.00037021,15]
[377063634,1754229039858,-200.0,0.00037021,15]
[377063636,1754229039868,-371.0,0.00037021,15]
[377063638,1754229039877,-200.0,0.00037397,10]
[377063640,1754229039886,-200.0,0.00037397,10]
[377063642,1754229039895,-200.0,0.00037397,10]
[377063644,1754229039905,-200.0,0.00037397,10]
[377063646,1754229039914,-200.0,0.00037397,10]
[377063649,1754229039923,-200.0,0.00037397,10]
[377063652,1754229039932,-200.0,0.00037397,10]
[377063654,1754229039942,-200.0,0.00037397,10]
[377063656,1754229039951,-200.0,0.00037397,10]
[377063658,1754229039961,-200.0,0.00037397,10]
[377063660,1754229039970,-200.0,0.00037397,10]
[377063663,1754229039980,-200.0,0.00037397,10]
[377063664,1754229039988,-200.0,0.00037397,10]
[377063668,1754229039998,-200.0,0.00037397,10]
[377063671,1754229040007,-200.0,0.00037397,10]
[377063674,1754229040017,-200.0,0.00037397,10]
[377063677,1754229040027,-262.579659,0.00037397,10]
[377063681,1754229040037,-167.0,0.00037397,30]
[377063684,1754229040046,-154.0,0.000375,120]
[377063687,1754229040055,-1228.12,0.00037547,120]
[377063690,1754229040065,-1500.0,0.00038,2]
[377063692,1754229040075,-1500.0,0.00038,2]
[377063695,1754229040084,-1500.0,0.00038,2]
[377063698,1754229040093,-1500.0,0.00038,2]
[377063701,1754229040102,-381.12,0.00038,7]
[377063704,1754229040112,-444.03092742,0.00038036,2]
[377063706,1754229040121,-400.0,0.00038356,120]
[377063709,1754229040130,-320.38262899,0.000386,2]
[377063712,1754229040139,-20000.0,0.000387,120]
[377063715,1754229040148,-160.0,0.000387,120]
[377063718,1754229040158,-500.0,0.00038773,5]
[377063722,1754229040167,-1007.16,0.000388,120]
[377063724,1754229040176,-1007.16,0.000388,120]
[377063728,1754229040187,-1007.16,0.000388,120]
[377063731,1754229040196,-1007.16,0.000388,120]
[377063734,1754229040205,-1007.16,0.000388,120]
[377063737,1754229040214,-1007.16,0.000388,120]
[377063739,1754229040223,-1007.16,0.000388,120]
[377063743,1754229040232,-1007.16,0.000388,120]
[377063746,1754229040242,-1007.16,0.000388,120]
[377063748,1754229040251,-1007.16,0.000388,120]
[377063750,1754229040260,-1007.16,0.000388,120]
[377063751,1754229040269,-1007.16,0.000388,120]
[377063753,1754229040279,-1007.16,0.000388,120]
[377063756,1754229040288,-1007.16,0.000388,120]
[377063759,1754229040298,-1007.16,0.000388,120]
[377063762,1754229040308,-1007.16,0.000388,120]
[377063765,1754229040317,-1007.16,0.000388,120]
[377063768,1754229040326,-1007.16,0.000388,120]
[377063771,1754229040336,-1007.16,0.000388,120]
[377063774,1754229040346,-1007.16,0.000388,120]
[377063776,1754229040355,-1007.16,0.000388,120]
[377063778,1754229040364,-1007.16,0.000388,120]
[377063780,1754229040374,-1007.16,0.000388,120]
[377063782,1754229040383,-1007.16,0.000388,120]
[377063784,1754229040392,-1007.16,0.000388,120]
[377063786,1754229040401,-1007.16,0.000388,120]
[377063788,1754229040410,-1007.16,0.000388,120]
[377063790,1754229040420,-1007.16,0.000388,120]
[377063792,1754229040429,-1007.16,0.000388,120]
[377063795,1754229040440,-1007.16,0.000388,120]
[377063797,1754229040449,-1007.16,0.000388,120]
[377063799,1754229040458,-1007.16,0.000388,120]
[377063800,1754229040468,-1007.16,0.000388,120]
[377063803,1754229040477,-763.0,0.000388,120]
[377063805,1754229040487,-1007.88,0.000388,120]
[377063807,1754229040496,-151.96504,0.000388,20]
[377063809,1754229040505,-1245.88,0.0003889,3]
[377063810,1754229040515,-622.94,0.0003889,3]
[377063813,1754229040524,-311.47,0.0003889,3]
[377063814,1754229040533,-155.73,0.0003889,3]
[377063816,1754229040542,-467.22,0.0003889,3]
[377063818,1754229040551,-320.38262896,0.00038897,2]
[377063820,1754229040560,-1216.17589477,0.000389,120]
[377063823,1754229040575,-18783.82410523,0.000389,120]
[377063825,1754229040584,-5849.7710282,0.000389,120]
[377063827,1754229040594,-7757.03517374,0.000389,120]
[377063829,1754229040605,-12242.96482626,0.000389,120]
[377063831,1754229040615,-1581.68,0.000389,7]
[377063833,1754229040624,-1228.12,0.00038917,120]
[377063835,1754229040633,-500.0,0.00038999,30]
[377063837,1754229040642,-500.0,0.00038999,30]
[377063839,1754229040652,-300.0,0.00038999,30]
[377063841,1754229040661,-151.0,0.00038999,30]
[377063843,1754229040670,-500.0,0.00038999,30]
[377063845,1754229040680,-151.0,0.00038999,30]
[377063847,1754229040692,-189.66517374,0.00038999,30]
[377063849,1754229040704,-110.33482626,0.00038999,30]
[377063852,1754229040714,-151.0,0.00038999,30]
[377063853,1754229040723,-500.0,0.00038999,30]
[377063855,1754229040734,-151.0,0.00038999,30]
[377063857,1754229040744,-300.0,0.00038999,30]
[377063859,1754229040754,-151.0,0.00038999,30]
[377063861,1754229040764,-300.0,0.00038999,30]
[377063863,1754229040777,-500.0,0.00038999,30]
[377063865,1754229040786,-151.0,0.00038999,30]
[377063867,1754229040796,-151.0,0.00038999,30]
[377063870,1754229040805,-500.0,0.00038999,30]
[377063872,1754229040814,-171.999136,0.00038999,30]
[377063874,1754229040823,-300.0,0.00038999,30]
[377063876,1754229040832,-500.0,0.00038999,30]
[377063878,1754229040842,-151.0,0.00038999,30]
[377063880,1754229040851,-300.0,0.00038999,30]
[377063881,1754229040861,-151.0,0.00038999,30]
[377063882,1754229040870,-151.0,0.00038999,30]
[377063883,1754229040880,-151.0,0.00038999,30]
[377063884,1754229040889,-151.0,0.00038999,30]
[377063885,1754229040898,-151.0,0.00038999,30]
[377063886,1754229040907,-151.0,0.00038999,30]
[377063887,1754229040915,-1888.0,0.00038999,30]
[377063888,1754229040924,-151.0,0.00038999,30]
[377063889,1754229040934,-151.0,0.00038999,30]
[377063890,1754229040946,-1666.06923954,0.00038999,30]
[377063891,1754229040958,-291.78676046,0.00038999,30]
[377063892,1754229040967,-151.0,0.00038999,30]
[377063893,1754229040977,-151.0,0.00038999,30]
[377063894,1754229040986,-250.0,0.00038999,30]
[377063895,1754229040995,-250.0,0.00038999,30]
[377063896,1754229041012,-250.0,0.00038999,30]
[377063897,1754229041023,-250.0,0.00038999,30]
[377063898,1754229041033,-151.0,0.00038999,30]
[377063899,1754229041042,-250.0,0.00038999,30]
[377063901,1754229041052,-250.0,0.00038999,30]
[377063902,1754229041061,-10140.51869475,0.00039,30]
[377063904,1754229041073,-93015.39084206,0.00039,30]
[377063906,1754229041082,-1000.0,0.00039,90]
[377063907,1754229041091,-8000.0,0.00039,30]
[377063910,1754229041101,-900.0,0.00039,120]
[377063912,1754229041110,-500.0,0.00039,30]
[377063914,1754229041119,-1595.72086741,0.00039,30]
[377063916,1754229041129,-1000.0,0.00039,30]
[377063918,1754229041138,-1500.0,0.00039,2]
[377063920,1754229041147,-1500.0,0.00039,2]
[377063922,1754229041156,-1500.0,0.00039,2]
[377063924,1754229041165,-206.0,0.0003905,30]
[377063926,1754229041175,-200.0,0.00039098,120]
[377063928,1754229041185,-277.7637517,0.00039178,30]
[377063930,1754229041195,-320.38262896,0.00039195,2]
[377063932,1754229041204,-200.0,0.00039199,120]
[377063934,1754229041214,-151.0,0.000394,11]
[377063936,1754229041223,-154.0,0.000394,120]
[377063938,1754229041232,-200.0,0.00039454,120]
[377063940,1754229041241,-200.0,0.00039468,120]
[377063942,1754229041251,-320.38262896,0.00039492,2]
[377063944,1754229041261,-151.0,0.000395,17]
[377063946,1754229041270,-1613.0,0.00039569,5]
[377063948,1754229041279,-151.0,0.000396,19]
[377063950,1754229041288,-151.0,0.000397,11]
[377063952,1754229041298,-200.0,0.00039709,120]
[377063954,1754229041307,-200.0,0.00039742,120]
[377063956,1754229041317,-320.38262896,0.00039789,2]
[377063958,1754229041327,-2729.85338111,0.000398,120]
[377063960,1754229041337,-309.07689848,0.000398,90]
[377063962,1754229041347,-200.0,0.00039836,120]
[377063964,1754229041356,-232.48497874,0.00039869,3]
[377063966,1754229041367,-1278.66738307,0.00039879,3]
[377063968,1754229041376,-202.42350818,0.00039879,3]
[377063970,1754229041386,-165.12,0.00039888,2]
[377063972,1754229041395,-165.12,0.00039888,2]
[377063974,1754229041405,-165.12,0.00039888,2]
[377063976,1754229041414,-165.12,0.00039888,2]
[377063978,1754229041424,-3588.02621619,0.00039889,2]
[377063980,1754229041434,-6827.14969077,0.00039889,15]
[377063982,1754229041447,-545.89180486,0.00039889,15]
[377063987,1754229041487,-255.90501161,0.00027945,10]
[377063989,1754229041499,-66.19091561,0.00027945,10]
[377063991,1754229041508,-448.30691491,0.00027945,10]
[377063994,1754229041520,-51.69308509,0.00027945,10]
[377063996,1754229041529,-551.82591491,0.00027945,10]
[377063998,1754229041541,-21.09408509,0.00027945,10]
[377064000,1754229041550,-572.92,0.00027945,10]
[377064002,1754229041560,-464.78479658,0.00032921,2]
[377064004,1754229041570,-6437.01302051,0.00039889,15]
[377064006,1754229041582,-5271.73658947,0.00039889,15]
[377064173,1754229043202,-460.0,0.00027945,10]
[377064175,1754229043211,-572.92,0.00033513,10]
[377064177,1754229043221,-4747.08,0.00039889,15]
[377064182,1754229043260,-70000.0,0.00039889,15]
[377065169,1754229758035,151.0,0.00024,120]
[377065170,1754229759440,151.0,0.000262,120]
[377065171,1754229760802,151.0,0.000284,120]
[377065174,1754229922287,161.349648,0.00013699,2]
[377065176,1754229939122,-972.02,0.00023364,2]
[377065177,1754229939147,-161.349648,0.00024907,2]
[377065178,1754229939169,-356.0,0.00027944,2]
[377065179,1754229939192,-189.84304877,0.00027945,10]
[377065180,1754230000091,-184.09322381,0.00027944,2]
[377065181,1754230118988,153.0,0.00024,120]
[377065182,1754230120412,153.0,0.000263,120]
[377065183,1754230121795,153.0,0.000285,120]
[377065223,1754230232649,-261.63027865,0.00025845,2]
[377065225,1754230232660,-300.0,0.00027944,2]
[377065227,1754230232669,-391.33380107,0.00027945,10]
[377065232,1754230232707,-68.66619893,0.00027945,10]
[377065234,1754230232717,-460.0,0.00027945,10]
[377065236,1754230232727,-500.0,0.00027945,10]
[377065238,1754230232736,-270.15695123,0.00027945,10]
[377065240,1754230232746,-468.73,0.00027945,10]
[377065242,1754230232755,-468.73,0.00027945,10]
[377065244,1754230232764,-179.87636195,0.00027945,10]
[377065301,1754230234893,151.0,0.00024,120]
[377065302,1754230236285,151.0,0.000263,120]
[377065303,1754230237797,151.0,0.000287,120]
[377065308,1754230238375,-288.85363805,0.00027945,10]
[377065309,1754230238386,-468.73,0.00027945,10]
[377065310,1754230238397,-556.82,0.000282,2]
[377065311,1754230238406,-171.40040193,0.000283,2]
[377065312,1754230238417,-828.59959807,0.000283,2]
[377065313,1754230238427,-199.87,0.00028324,30]
[377065314,1754230238435,-102.30486715,0.0002884,5]
[377065317,1754230238518,-397.69513285,0.0002884,5]
[377065318,1754230238527,-646.26358049,0.0002884,5]
[377065319,1754230238536,-502.02381942,0.0002884,5]
[377065320,1754230238545,-500.0,0.0002884,5]
[377065321,1754230238556,-500.0,0.0002902,5]
[377065322,1754230238565,-500.0,0.0002902,5]
[377065323,1754230238574,-13191.0184228,0.00029086,2]
[377065324,1754230238584,-468.73,0.00029328,10]
[377065325,1754230238593,-200.0,0.00029341,15]
[377065326,1754230238603,-300.0,0.00029341,15]
[377065327,1754230238612,-762.82853192,0.00029648,2]
[377065328,1754230238622,-893.2480233,0.00029664,30]
[377065329,1754230238631,-420.0,0.00030181,2]
[377065330,1754230238641,-500.0,0.0003055,5]
[377065331,1754230238651,-261.63027865,0.00030845,2]
[377065332,1754230238660,-160.0,0.0003085,2]
[377065333,1754230238669,-300.0,0.00031398,2]
[377065334,1754230238678,-200.0,0.0003216,15]
[377065335,1754230238687,-200.0,0.0003216,15]
[377065336,1754230238696,-300.0,0.0003216,15]
[377065337,1754230238705,-587.0,0.00032598,2]
[377065338,1754230238716,-154.25,0.00032602,2]
[377065339,1754230238727,-168.27,0.00032996,30]
[377065340,1754230238736,-468.73,0.00033318,10]
[377065341,1754230238746,-1786.65797491,0.00033346,2]
[377065342,1754230238758,-413.34202509,0.00033346,2]
[377065343,1754230238767,-460.0,0.00034039,10]
[377065344,1754230238777,-3094.23901924,0.0003404,2]
[377065345,1754230238793,-887.65471808,0.0003404,2]
[377065356,1754230240623,-151.0,0.00031,120]
[377065357,1754230240633,-151.0,0.000334,120]
[377065358,1754230240643,-19408.56121144,0.0003404,2]
[377065374,1754230245799,-201.52,0.000285,30]
[377065376,1754230245809,-201.52,0.00029624,30]
[377065377,1754230245820,-201.52,0.00030748,30]
[377065378,1754230245830,-201.52,0.00031872,30]
[377065379,1754230245840,-201.52,0.00032996,30]
[377065380,1754230245850,-1509.54505124,0.0003404,2]
[377065381,1754230245870,-2200.0,0.0003404,7]
[377065383,1754230245882,-201.52,0.00034121,30]
[377065384,1754230245892,-1000.0,0.00035,90]
[377065385,1754230245902,-1887.7383133,0.00035107,2]
[377065386,1754230245912,-823.0,0.00035207,2]
[377065387,1754230245922,-201.52,0.00035245,60]
[377065388,1754230245932,-200.0,0.00035249,15]
[377065389,1754230245942,-200.0,0.00035249,15]
[377065390,1754230245952,-200.0,0.00035249,15]
[377065391,1754230245962,-256.34368361,0.00035249,15]
[377065392,1754230245975,-122.65631639,0.00035249,15]
[377065393,1754230245985,-200.0,0.00035674,120]
[377065394,1754230245995,-151.0,0.000357,120]
[377065395,1754230246005,-261.63027865,0.00035845,2]
[377065396,1754230246015,-468.73,0.00035999,10]
[377065397,1754230246025,-1000.0,0.00036,90]
[377065398,1754230246034,-161.349648,0.00036115,2]
[377065399,1754230246044,-500.0,0.00036164,7]
[377065400,1754230246053,-201.52,0.00036369,60]
[377065401,1754230246063,-1000.0,0.00037,90]
[377065402,1754230246073,-200.0,0.00037073,120]
[377065403,1754230246083,-201.52,0.00037493,60]
[377065404,1754230246092,-500.97051171,0.00037567,5]
[377065405,1754230246103,-284.12932962,0.00037606,2]
[377065406,1754230246112,-500.0,0.0003766,5]
[377065407,1754230246123,-177.566,0.00037789,49]
[377065408,1754230246133,-476.982936,0.00038,30]
[377065409,1754230246143,-1000.0,0.00038,90]
[377065410,1754230246154,-167.0,0.00038,30]
[377065411,1754230246164,-1152.0,0.00038026,2]
[377065412,1754230246175,-151.0,0.000381,120]
[377065413,1754230246185,-500.0,0.00038263,5]
[377065414,1754230246195,-400.0,0.00038356,120]
[377065415,1754230246205,-331.76095012,0.00038475,2]
[377065416,1754230246215,-460.0,0.00038632,120]
[377065417,1754230246225,-460.0,0.00038632,120]
[377065418,1754230246236,-460.0,0.00038632,120]
[377065419,1754230246247,-460.0,0.00038633,120]
[377065420,1754230246259,-460.0,0.00038633,120]
[377065422,1754230246269,-200.0,0.00038634,30]
[377065424,1754230246278,-200.0,0.00038634,30]
[377065425,1754230246288,-200.0,0.00038634,30]
[377065427,1754230246299,-200.0,0.00038634,30]
[377065428,1754230246309,-200.0,0.00038634,30]
[377065429,1754230246320,-371.0,0.00038634,30]
[377065430,1754230246329,-468.73,0.00038698,120]
[377065431,1754230246339,-468.73,0.00038699,120]
[377065432,1754230246349,-468.73,0.00038799,120]
[377065433,1754230246359,-468.73,0.00038799,120]
[377065434,1754230246368,-151.96504,0.000388,20]
[377065435,1754230246378,-1000.0,0.0003881,5]
[377065436,1754230246387,-468.73,0.0003888,120]
[377065437,1754230246402,-468.73,0.00038899,120]
[377065438,1754230246412,-468.73,0.00038899,120]
[377065439,1754230246421,-468.73,0.00038899,120]
[377065440,1754230246431,-468.73,0.00038998,120]
[377065441,1754230246441,-468.73,0.00038999,120]
[377065442,1754230246451,-1000.0,0.00039,90]
[377065443,1754230246460,-201.0,0.0003929,52]
[377065444,1754230246470,-162070.93671467,0.000393,30]
[377065445,1754230246484,-567.36824388,0.000393,30]
[377065446,1754230246495,-1636.66243994,0.000393,30]
[377065447,1754230246516,-113990.0,0.000393,30]
[377065448,1754230246560,-310724.14952231,0.000393,30]
[377065449,1754230246620,-511.25,0.000393,30]
[377065450,1754230246632,-1568.11463207,0.000393,30]
[377065451,1754230246643,-1009.27601094,0.000393,30]
[377065452,1754230246655,-514.7,0.000393,30]
[377065453,1754230246686,-457.48392249,0.000393,30]
[377065455,1754230259511,-151.0,0.00038998,60]
[377065456,1754230259536,-151.0,0.00039272,60]
[377065457,1754230259560,-112950.0585137,0.000393,30]
[377065458,1754230259586,-190.47,0.00039499,120]
[377065459,1754230259611,-10000.0,0.000395,120]
[377065460,1754230259635,-235.75805718,0.00039546,60]
[377065461,1754230259661,-460.0,0.00039778,120]
[377065462,1754230259688,-460.0,0.00039778,120]
[377065463,1754230259715,-460.0,0.00039778,120]
[377065464,1754230259740,-1074.6,0.00039778,120]
[377065465,1754230259769,-460.0,0.00039788,120]
[377065466,1754230259797,-460.0,0.00039788,120]
[377065467,1754230259825,-460.0,0.00039788,120]
[377065468,1754230259852,-460.0,0.00039788,120]
[377065469,1754230259878,-460.0,0.00039788,120]
[377065470,1754230259905,-460.0,0.00039788,120]
[377065471,1754230259931,-460.0,0.00039788,120]
[377065472,1754230259958,-460.0,0.00039788,120]
[377065473,1754230259985,-460.0,0.00039788,120]
[377065474,1754230260012,-460.0,0.00039788,120]
[377065475,1754230260154,-460.0,0.00039788,120]
[377065476,1754230260177,-460.0,0.00039788,120]
[377065477,1754230260202,-387.45630018,0.00039788,31]
[377065478,1754230260228,-450.0,0.0003985,60]
[377065479,1754230260252,-468.73,0.00039868,120]
[377065480,1754230260276,-468.73,0.00039869,120]
[377065481,1754230260304,-460.0,0.00039878,120]
[377065482,1754230260330,-460.0,0.00039878,120]
[377065483,1754230260357,-460.0,0.00039878,120]
[377065484,1754230260384,-460.0,0.00039878,120]
[377065485,1754230260413,-460.0,0.00039878,120]
[377065486,1754230260439,-460.0,0.00039878,120]
[377065487,1754230260465,-460.0,0.00039878,120]
[377065488,1754230260493,-460.0,0.00039878,120]
[377065489,1754230260520,-305.65,0.00039878,120]
[377065490,1754230260547,-460.0,0.00039878,120]
[377065491,1754230260575,-468.73,0.00039878,120]
[377065492,1754230260599,-468.73,0.00039878,120]
[377065493,1754230260622,-468.73,0.00039878,120]
[377065494,1754230260658,-468.73,0.00039878,120]
[377065495,1754230260683,-468.90373793,0.00039878,120]
[377065496,1754230260709,-1000.0,0.00039888,120]
[377065497,1754230260735,-460.0,0.00039888,120]
[377065498,1754230260762,-460.0,0.00039888,120]
[377065499,1754230260788,-259.48,0.00039888,120]
[377065500,1754230260814,-1000.0,0.00039889,120]
[377065501,1754230260841,-200.0,0.00039988,120]
[377065502,1754230260866,-500.0,0.00039999,31]
[377065503,1754230260892,-404.06470043,0.00039999,31]
[377065504,1754230260916,-2244740.5018956,0.0004,30]
[377065505,1754230260940,-251397.40986594,0.0004,120]
[377065506,1754230260964,-7426.20633182,0.0004,120]
[377065507,1754230260988,-479.79939826,0.0004,30]
[377065508,1754230261012,-3954.81083925,0.0004,30]
[377065509,1754230261036,-347500.45035971,0.0004,30]
[377065510,1754230266247,-152.84137554,0.00039788,31]
[377065511,1754230266275,-356.62987626,0.00039999,31]
[377065512,1754230266303,-2647769.35731271,0.0004,30]
[377065513,1754230266329,-161.09188087,0.0004,120]
[377065514,1754230266354,-518.5313257,0.0004,120]
[377065515,1754230266378,-150.0,0.0004,120]
[377065516,1754230266408,-8000.0,0.0004,30]
[377065517,1754230266432,-2000.0,0.0004,90]
[377065518,1754230266458,-1000.0,0.0004,120]
[377065519,1754230266484,-206.0,0.0004,30]
[377065520,1754230266507,-1301.77373931,0.0004,120]
[377065521,1754230266532,-3052.80765162,0.0004,30]
[377065522,1754230266556,-200.0,0.00040167,120]
[377065523,1754230266581,-1074.6,0.00040189,120]
[377065524,1754230266606,-167.0,0.00040274,90]
[377065525,1754230266629,-151.0,0.000404,120]
[377065526,1754230266655,-3000.0,0.0004049,90]
[377065527,1754230266680,-200.0,0.00040578,120]
[377065528,1754230266704,-200.0,0.00040595,120]
[377065529,1754230266729,-1074.6,0.000406,120]
[377065530,1754230266754,-200.0,0.00040762,120]
[377065531,1754230266779,-200.0,0.00040782,120]
[377065532,1754230266803,-977.20381926,0.00041,48]
[377065533,1754230266827,-300.0,0.00041,120]
[377065534,1754230266851,-200.0,0.00041,120]
[377065535,1754230266875,-150.0,0.00041,120]
[377065536,1754230266900,-1074.6,0.00041011,120]
[377065537,1754230266925,-200.0,0.00041018,120]
[377065538,1754230266949,-400.0,0.00041096,120]
[377065539,1754230266973,-1311.06,0.00041096,120]
[377065540,1754230266998,-200.0,0.00041263,120]
[377065541,1754230267024,-200.0,0.00041349,120]
[377065542,1754230267049,-200.0,0.00041387,120]
[377065543,1754230267074,-1074.6,0.00041422,120]
[377065544,1754230267098,-200.0,0.00041455,120]
[377065545,1754230267122,-3000.0,0.0004149,90]
[377065546,1754230267146,-200.0,0.00041504,120]
[377065547,1754230267169,-200.0,0.00041571,120]
[377065548,1754230267193,-200.0,0.00041607,120]
[377065549,1754230267218,-200.0,0.00041772,120]
[377065550,1754230267242,-1074.6,0.00041833,120]
[377065551,1754230267265,-2823.78018253,0.000419,120]
[377065552,1754230267289,-600.0,0.00042,120]
[377065553,1754230267313,-150.0,0.00042,120]
[377065554,1754230267336,-280.14106236,0.00042,120]
[377065555,1754230267360,-1074.6,0.00042244,120]
[377065556,1754230267488,-200.0,0.00042345,30]
[377065557,1754230267518,-200.0,0.00042345,30]
[377065558,1754230267548,-200.0,0.00042345,30]
[377065559,1754230267577,-200.0,0.00042345,30]
[377065560,1754230267606,-200.0,0.00042345,30]
[377065561,1754230267635,-200.0,0.00042345,30]
[377065562,1754230267663,-200.0,0.00042345,30]
[377065563,1754230267692,-200.0,0.00042345,30]
[377065564,1754230267721,-320.0,0.00042345,30]
[377065565,1754230267746,-3000.0,0.0004249,90]
[377065566,1754230267770,-1074.6,0.00042655,120]
[377065567,1754230267794,-151.0,0.000428,120]
[377065568,1754230267819,-539.8,0.0004288,120]
[377065569,1754230267841,-506.78,0.00043,120]
[377065570,1754230267868,-10205.38405792,0.00043,30]
[377065571,1754230267892,-150.0,0.00043,120]
[377065572,1754230267917,-1074.6,0.00043066,120]
[377065573,1754230267941,-150.0,0.0004321,120]
[377065574,1754230267966,-1074.6,0.00043477,120]
[377065575,1754230267991,-3000.0,0.0004349,90]
[377065576,1754230268014,-800.0,0.000435,120]
[377065577,1754230268038,-539.8,0.000438,120]
[377065578,1754230268062,-400.0,0.00043836,120]
[377065579,1754230268087,-1074.6,0.00043888,120]